Cogmind - Beta 16 --- EXPLORER MODE // 2025.11.12 @ 16:14:14 Player: K.K.Y. Result: Destroyed self with Mini Grenade Launcher Performance ------------- Evolutions (0) 0 Regions Visited (2) 400 Robots Destroyed (42) 210 Value Destroyed (1307) 1307 Prototype IDs (13) 260 Alien Tech Used (0) 0 Bonus (-37) -37 TOTAL SCORE: 2140 Bonus ------- Friendly Fire -37 Cogmind --------- Core Integrity 0/250 Matter 99/300 Energy 250/250 System Corruption 0% Temperature Cool (0) Movement Treading (160) Location -10/Subcaves Parts ------- > --- POWER (1) -------- Ion Engine > --- PROPULSION (3) --- Light Treads Spiked Treads > --- UTILITY (2) ------ Large Storage Unit > --- WEAPON (2) ------- Mini Grenade Launcher Mining Claw > --- INVENTORY (15) --- Cargo Legs Structural Scanner Sensor Array Terrain Scanner Light Armor Plating Scrap Shield Cobbler Unit Particle Gun Battle Rifle Barrage Gun Barrage Gun Barrage Gun Peak State ------------ > --- POWER ------------ Ion Engine > --- PROPULSION ------- Light Treads Spiked Treads Spiked Treads > --- UTILITY ---------- Large Storage Unit > --- WEAPON ----------- Mini Grenade Launcher Mining Claw > --- INVENTORY -------- Cargo Legs Structural Scanner Sensor Array Terrain Scanner Light Armor Plating Scrap Shield Cobbler Unit Particle Gun Battle Rifle Barrage Gun Barrage Gun Barrage Gun [Rating: 14] Favorites ----------- Power Ion Engine Engine Ion Engine Propulsion Light Treads Treads Light Treads Wheel Wheel Utility Large Storage Unit Storage Large Storage Unit Protection Light Armor Plating Weapon EM Pulse Gun Energy Gun EM Pulse Gun Launcher Mini Grenade Launcher Special Weapon Mining Laser Slashing Weapon Mining Claw Build | -11 -10 -10 ------- Run | Yrd Mat Sub Slots Evolved 1 | . 1 . Power . | . . . Propulsion 1 | . 1 . Utility . | . . . Weapon . | . . . Parts Attached 23 | 7 6 10 Power 3 | 1 1 1 Engine 3 | 1 1 1 Core . | . . . Reactor . | . . . Propulsion 11 | 2 4 5 Treads 6 | 2 1 3 Leg . | . . . Wheel 5 | . 3 2 Hover . | . . . Flight . | . . . Utility 3 | 2 1 . Device . | . . . Storage 2 | 1 1 . Processor . | . . . Hackware . | . . . Protection 1 | 1 . . Artifact . | . . . Weapon 6 | 2 . 4 Energy Gun 3 | 2 . 1 Energy Cannon . | . . . Ballistic Gun . | . . . Ballistic Cannon . | . . . Launcher 1 | . . 1 Special Weapon 1 | . . 1 Impact Weapon . | . . . Slashing Weapon 1 | . . 1 Piercing Weapon . | . . . Special Melee Weapon . | . . . Unidentified Prototypes 1 | . 1 . Parts Lost 9 | . . 9 Power 1 | . . 1 Propulsion 4 | . . 4 Utility . | . . . Weapon 4 | . . 4 Highest Loss Streak 6 | . . 6 To Critical Strikes . | . . . Average Backups 11 | 1 9 13 Power . | . . . Propulsion 1 | . 2 1 Utility 5 | . 3 6 Weapon 4 | . 2 4 Tool/Special . | . . . Unused Backups 16 | . 3 13 Power 1 | . 1 . Propulsion 2 | . 1 1 Utility 7 | . . 7 Weapon 5 | . . 5 Tool/Special 1 | . 1 . Average Slot Usage (%) 77 | . 89 72 Engine 6 | . 12 4 Treads 23 | . 23 24 Wheel 8 | . 5 9 Storage 12 | . 12 12 Protection 2 | . 10 . Energy Gun 9 | . 24 3 Launcher 6 | . . 8 Slashing Weapon 6 | . . 8 Peak Build Rating 14 | 7 10 14 Average Rating 9 | 4 8 10 On Entrance 5 | . 7 9 Avg Prop Armor Cover (%) 9 | . 9 . Naked Turns . | . . . Heaviest Build 32 | 22 32 30 Greatest Support 60 | 40 60 60 Greatest Overweight (x) 7 | . 3 7 Average Overweight (x) . | . . . Largest Inventory Capacity 15 | 10 15 15 Average Capacity 14 | 8 13 15 Most Carried 15 | 5 15 15 Average Carried 12 | 1 9 14 Final Capacity 15 | 10 15 15 Final Carried 15 | . 14 15 Class Distribution -------------------- 100% | Hacker-Mutant Dominant Class ---------------- Hacker-Mutant | -10/Materials Hacker-Mutant | -10/Subcaves Resources | -11 -10 -10 ----------- Run | Yrd Mat Sub Matter Collected 811 | 160 170 481 Remotely . | . . . Salvage Created 1375 | . 412 963 Parts 77 | . 26 51 Haulers Intercepted 2 | . 2 . Recyclers Shooed 1 | . 1 . Parts Field Recycled . | . . . Retrieved Matter . | . . . Parts Self-Destructed . | . . . Prevented . | . . . Parts Restored . | . . . Kills | -11 -10 -10 ------- Run | Yrd Mat Sub Combat Hostiles Destroyed 33 | . 5 28 Guns 11 | . 5 6 Cannons 1 | . . 1 AOE 21 | . . 21 Classes Destroyed 11 | . 6 5 Worker 1 | . 1 . Builder 2 | . 2 . Hauler 2 | . 2 . Watcher 3 | . 3 . Swarmer 3 | . 2 1 Grunt 5 | . 3 2 Sentry 1 | . . 1 Artisan 1 | . . 1 Cobbler 1 | . . 1 Subdweller 24 | . . 24 Zionite 1 | . . 1 Best Kill Streak 4 | . 3 4 Combat Bots Only 4 | . 2 4 Max Kills in Single Turn 2 | . 1 2 Gunslinging . | . . . Exploded 2 | . . 2 Melee . | . . . Uniques/NPCs Destroyed . | . . . Combat | -11 -10 -10 -------- Run | Yrd Mat Sub Hostile Shots Fired 129 | . 17 112 Missed 50 | . 6 44 Hits 79 | . 11 68 Projectile 79 | . 11 68 AOE 5 | . . 5 Critical Strikes 4 | . . 4 Damage Taken 1353 | . 100 1253 Core 258 | . 29 229 Absorbed by Shields . | . . . Ignored by Resistances 805 | . 59 746 Core Remaining (%) 100 | 100 . . Volleys Fired 135 | . 26 109 Largest 2 | . 2 1 Hottest 100 | . 80 100 Shots Fired 161 | . 52 109 Gun 103 | . 52 51 Cannon . | . . . Launcher 54 | . . 54 Special 4 | . . 4 Kinetic . | . . . Thermal 4 | . . 4 Explosive 54 | . . 54 Electromagnetic 103 | . 52 51 Robot Hit Streak 27 | . 17 27 Robot Miss Streak 2 | . 2 2 Penetration Max . | . . . Secondary Targets . | . . . Shots Hit Robots 107 | . 38 69 Core Hits 76 | . 20 56 Critical Kills . | . . . Critical Parts Destroyed . | . . . Critical Strikes 2 | . . 2 Corrupt 2 | . . 2 Melee Attacks 7 | . . 7 Impact . | . . . Slashing 7 | . . 7 Piercing . | . . . Sneak Attacks . | . . . Combat Hostiles . | . . . Follow-up Attacks . | . . . Damage Inflicted 3865 | . 653 3212 Guns 1015 | . 548 467 Cannons . | . . . Explosions 2710 | . 85 2625 Melee 24 | . . 24 Ramming 20 | . 20 . Kinetic . | . . . Thermal 269 | . 85 184 Explosive 2537 | . . 2537 Electromagnetic 1015 | . 548 467 Impact . | . . . Slashing 24 | . . 24 Piercing . | . . . Highest Corruption . | . . . Average Corruption . | . . . Corruption Purged . | . . . Corruption Blocked . | . . . Overload Shots . | . . . Overflow Damage 5 | . . 5 Projectiles . | . . . Explosions 5 | . . 5 Melee . | . . . Knockbacks . | . . . Impact . | . . . Kinetic . | . . . Secondary . | . . . Self-Inflicted Damage 276 | . 16 260 Shots 20 | . 1 19 Rammed 3 | . 3 . Targets Rammed 3 | . 3 . Kicked . | . . . Crushed . | . . . Highest Temperature 153 | . 153 8 Average Temperature 46 | . 47 8 Received Heat Transfer 351 | . 72 279 Siege Activations . | . . . Martial Activations . | . . . Shielding Activations . | . . . Robots Disrupted . | . . . Combat Hostiles . | . . . Robots Corrupted . | . . . Combat Hostiles . | . . . Parts Fried 5 | . 3 2 Impact Corruptions . | . . . Robots Melted . | . . . Combat Hostiles . | . . . Parts Melted 1 | . . 1 Heat Transferred 300 | . . 300 Parts Sabotaged . | . . . Parts Stolen . | . . . Parts Stripped . | . . . Power Chain Reactions 4 | . 2 2 Alert | -11 -10 -10 ------- Run | Yrd Mat Sub Maximum Alert Level . | . . . Low Security (%) 100 | 100 100 . Level 1 . | . . . Level 2 . | . . . Level 3 . | . . . Level 4 . | . . . Level 5 . | . . . High Security . | . . . Max Security . | . . . Peak Influence 50 | . 50 . Initial . | . . . Average 4 | . 4 . Influence Increases 286 | . 196 90 Destroy 0b10 Robot/C 180 | . 100 80 Destroy 0b10 Robot/NC 40 | . 40 . Destroy Leader 50 | . 40 10 Successful Hack 3 | . 3 . Destroy Structure 13 | . 13 . Influence Decreases 286 | . 196 90 Time Decay 238 | . 158 80 Lost Part 10 | . . 10 Purge Threat 38 | . 38 . Squads Dispatched . | . . . Investigation . | . . . Extermination . | . . . Reinforcement . | . . . Assault . | . . . Garrison . | . . . Intercept . | . . . Searches Triggered . | . . . Construction Impeded . | . . . Haulers Reinforced . | . . . Active Scanning Responses . | . . . Cargo Convoy Interrupts . | . . . Stealth | -11 -10 -10 --------- Run | Yrd Mat Sub Distress Signals . | . . . Communications Jammed . | . . . Distress Signals . | . . . Times Spotted 40 | . 10 30 Peak Tracking Total 3 | . 2 3 Tactical Retreats . | . . . Traps | -11 -10 -10 ------- Run | Yrd Mat Sub Traps Triggered 4 | . 4 . Indirectly . | . . . Trap Hack Attempts . | . . . Triggered . | . . . Disarmed . | . . . Reprogrammed . | . . . Reused . | . . . Traps Extracted . | . . . Installed . | . . . Triggered . | . . . Machines | -11 -10 -10 ---------- Run | Yrd Mat Sub Machines Disabled 1 | . . 1 Max in Single Turn 1 | . . 1 Machines Repaired . | . . . Machines Dismantled . | . . . Machines Sabotaged . | . . . Overloaded Fab Kills . | . . . Hacking | -11 -10 -10 --------- Run | Yrd Mat Sub Machines Accessed 3 | . 1 2 Terminals 1 | . 1 . Fabricators . | . . . Repair Stations . | . . . Recycling Units . | . . . Scanalyzers . | . . . Garrison Access . | . . . Total Hacks 16 | . 4 12 Successful 15 | . 3 12 Failed 1 | . 1 . Catastrophic . | . . . Database Lockouts . | . . . Manual . | . . . Terminals 4 | . 4 . Fabricators . | . . . Repair Stations . | . . . Recycling Units . | . . . Scanalyzers . | . . . Garrison Access . | . . . Terminal Hacks 15 | . 3 12 Record 11 | . . 11 Robot Analysis 1 | . 1 . Unreport Threat 1 | . 1 . Zone Layout 1 | . 1 . Proto ID Catalog 1 | . . 1 Fabricator Hacks . | . . . Repair Station Hacks . | . . . Recycling Unit Hacks . | . . . Scanalyzer . | . . . Garrison Access Hacks . | . . . Unauthorized Hacks . | . . . Terminals . | . . . Fabricators . | . . . Repair Stations . | . . . Recycling Units . | . . . Scanalyzers . | . . . Garrison Access . | . . . Data Cores Recovered . | . . . Used . | . . . Hacking Detections 1 | . 1 . Full Trace Events . | . . . Feedback Events . | . . . Feedback Blocked . | . . . Robot Schematics Acquired . | . . . Robots Built . | . . . Authchips . | . . . Time . | . . . Total Robot Build Rating . | . . . Part Schematics Acquired . | . . . Parts Built . | . . . Authchips . | . . . Time . | . . . Total Part Build Rating . | . . . Part Studies Acquired . | . . . Parts Repaired . | . . . Time . | . . . Parts Recycled . | . . . Recycled Matter . | . . . Retrieved Matter . | . . . Retrieved Components . | . . . Parts Scanalyzed . | . . . Part Schematics Acquired . | . . . Parts Damaged . | . . . Bothacking | -11 -10 -10 ------------ Run | Yrd Mat Sub Used RIF Installer . | . . . Robots Hacked . | . . . Non-combat . | . . . Combat . | . . . Robot Hacks Applied . | . . . Relay Couplers Released . | . . . Fabnet Peak Effective % . | . . . Robots Rewired . | . . . Allies Hacked . | . . . Hacks Repelled . | . . . Allies | -11 -10 -10 -------- Run | Yrd Mat Sub Total Allies . | . . . Largest Group . | . . . Highest-Rated Group . | . . . Highest-Rated Ally . | . . . Total Orders . | . . . Ally Attacks . | . . . Total Damage . | . . . Kills . | . . . Allies Corrupted . | . . . Allies Melted . | . . . Intel | -11 -10 -10 ------- Run | Yrd Mat Sub Active Infowar (turns) . | . . . Robot Analysis Total 1 | . 1 . Derelict Logs Recovered 1 | . . 1 Drone Launches . | . . . Drone Recoveries . | . . . Exploration | -11 -10 -10 ------------- Run | Yrd Mat Sub Turns Passed 3332 | 58 960 2314 Spaces Moved 2093 | 43 534 1516 Core 33 | 21 . 12 Treads 1276 | 22 378 876 Legs . | . . . Wheels 784 | . 156 628 Hover . | . . . Flight . | . . . Fastest Speed 50 | 50 80 80 Average Speed 137 | 106 155 131 Slowest Speed 400 | 160 240 400 Overloaded Moves . | . . . Propulsion Burnouts . | . . . Robots Hopped . | . . . Potential Cave-ins . | . . . Cave-ins Triggered . | . . . Exploration Rate (%) 54 | 4 85 73 Regions Visited 2 Branch Regions 1 Pre-discovered Areas 1 | . . 1 Known Exits Taken 2 | 1 1 . Unknown Exits Taken . | . . . Scrap Searched 7 | . . 7 Spaces Dug 31 | . . 31 Terrain Destroyed 302 | . 13 289 Melee . | . . . Projectile . | . . . AOE 302 | . 13 289 Terrain Rammed . | . . . Walls Destroyed . | . . . Machines Disabled . | . . . Actions | -11 -10 -10 --------- Run | Yrd Mat Sub Total 2372 | 54 613 1705 Wait 50 | . 15 35 Move 2091 | 42 533 1516 Hop . | . . . Pick Up 37 | 5 18 14 Fast Attach 9 | 2 6 1 Attach 15 | 5 2 8 Detach 3 | . 3 . Swap 7 | . 1 6 Drop 15 | . 6 9 Fire 135 | . 26 109 Melee 7 | . . 7 Ram 1 | . 1 . Kick . | . . . Crush 2 | . 2 . Escape Stasis . | . . . Rewire . | . . . Trap . | . . . Miscellaneous . | . . . Route ------- -11/Scrapyard -10/Materials (discovered 4 exits: *Mat x2 / *Min / *Sub) -10/Subcaves (discovered 2 exits: *Mat x2) History --------- Turn | Location | Event 10 | -11/Scrapyard | Identified exit to Materials 10 | -11/Scrapyard | Discovered exit to Materials (range 16) 59 | -11/Scrapyard | Entered Materials 59 | -10/Materials | Evolved 1 slot: Propulsion x1 296 | -10/Materials | Identified exit to Materials 296 | -10/Materials | Discovered exit to Materials (range 9) 307 | -10/Materials | Build established: Hacker-Mutant 468 | -10/Materials | Identified exit to Mines 468 | -10/Materials | Discovered exit to Mines (range 16) 686 | -10/Materials | Discovered exit to Materials (range 9) 1013 | -10/Materials | Identified exit to Subcaves 1013 | -10/Materials | Discovered exit to Subcaves (range 5) 1019 | -10/Materials | Entered Subcaves 1134 | -10/Subcaves | Identified exit to Materials 1134 | -10/Subcaves | Discovered exit to Materials (range 14) 1328 | -10/Subcaves | Curiously followed by a Cobbler waking with a query about "LVR3C" 1605 | -10/Subcaves | Ambushed by Subdweller buried in earth 1632 | -10/Subcaves | Ambushed by Subdweller buried in earth 1635 | -10/Subcaves | Core integrity fell below 50% 1665 | -10/Subcaves | Lost 6 parts (1p2n3w) 1922 | -10/Subcaves | Ambushed by angry Subdweller bent on revenge 2119 | -10/Subcaves | A Subdweller sparked back to life 2119 | -10/Subcaves | A Subdweller sparked back to life 2130 | -10/Subcaves | Ambushed by Subdweller buried in earth 2157 | -10/Subcaves | Learned Materials security intel 2322 | -10/Subcaves | Discovered exit to Materials (range 7) 2367 | -10/Subcaves | Visited Clippyterm 2372 | -10/Subcaves | Learned Factory stockpile data 2696 | -10/Subcaves | Learned location of Zion (-6) 2696 | -10/Subcaves | Met a Zionite searching for "candidates" 2899 | -10/Subcaves | Visited 4L-MR0's lab 2923 | -10/Subcaves | Found Cargo Legs 3315 | -10/Subcaves | Core integrity fell below 20% 3321 | -10/Subcaves | Disturbed a concealed Subdweller 3327 | -10/Subcaves | Disturbed a concealed Subdweller 3333 | -10/Subcaves | Destroyed self with Mini Grenade Launcher Last Messages --------------- 03087_ The unstable cave ceiling collapses. 03093_ Acquired 19 matter. 03144_ Acquired 16 matter. 03152_ Acquired Ion Engine. 03223_ SN-5NT(R) destroyed. 03225_ JJ-9PE(R) destroyed. 03238_ Dropped Seismic Detector. 03239_ Dropped Signal Interpreter. 03239_ Acquired Scrap Shield. 03241_ The unstable cave ceiling collapses. 03314_ Spk. Treads destroyed. 03314_ Destroyed Spk. Treads. 03321_ 3P-ZQN(R) angrily emerges from the Twisted Machinery. 03322_ 3P-ZQN(R): "SUB#$%&!" 03327_ UY-UR5(R) angrily emerges from the Twisted Machinery. 03329_ 3P-ZQN(R) affixes Scrap Shield Fragment to Scrap Shield. 03331_ UY-UR5(R) destroyed. Map ----- +----------------------------------------------------+ | ### #??????????????????????? | | ##### ##??????????????????????? | | ##???## #???????????????????????? | | ##?????# #???????????????????????? | | ## ### ##??????# #???????????????????????? | | ###### #?####???????## ##???????????????????????? | | #????###?????????????# ##????????????????????????? | | ?????????????????????###?????????????????????????? | | ?????????????????????????????????????????????????? | | ?????????????????????????????????????????????????? | | ?????????????????????????????????????????????????? | | ?????????????????????????????????????????????????? | | ?????????????????????????????????????????????????? | | ????????????????????????????????????????????????? | | ?????????????????????????????????????????????????? | | ?????????????????????????????????????????????????? | | ???????????????????????????????????????????????? | | ???????????????????????????????????????????????? | | ?????????????????????????????????????????????????? | | ?????????????????????????????????????????????????? | | ?????????????????????###??###?????????###????????? | | ???????????????????# #### ##?##???#?# ####???## | | ??????????????????# ## ## ## ### #??# # | | ????????????????### ## ??# | | ???????????????### " ??# | | ??????????????## @ # # #?? "" #?# | | ????????????????# ##???????? " ## | | ????????????????# < #????????##" ## | | ????????????????# $ R #???###### " # " | | ???????????????# $$ % & ###?#" # &%"" | | ???????????????# & ### " "" | | ???????????????# < # ! &"!#??? | | ???????????????# # ## ! ! #??? | | ###????????????# ## % #??? | | #?????######### # ####### #??? | | #??????# ######??????# " #??? | | #??????# ###????????#### # " | | ######?? ##?????????## "#### "" | | ##?? #??##????## "#?? #### | | #### #### ##??# """"""""" ##??? | | ## #?# """###" ##????? | | ## ### ##??### ##??????? | | ##????# ## ##?????###????????? | | # ###### #??????# #????????????????? | | ## ##???## ##??????### ##????????????????? | | ?#####????# ###???###### ##????????????????? | | ??????????# ##### ### #????????????????? | | ??????????## #?## #??? #??????????? | | ???????????#### ### #?# #??????????? | | ??????????????## # ## ## #???????????? | +----------------------------------------------------+ Best States ------------- Heat Dissipation 25 Energy Generation 14 Energy Capacity 280 Matter Stores 300 Matter Capacity 300 Sight Range 16 Terrain Scan Density 10 Armor Coverage 150 Resistance: KI 35 Resistance: TH 35 Resistance: EX 35 Resistance: EM 35 Resistance: I 35 Resistance: S 35 Resistance: P 35 Evasion (%) 50 Recoil Reduction 3 Offensive Hacking 20 Item Schematics ----------------- None Robot Schematics ------------------ None Fabricated ------------ Nothing Repaired ---------- Nothing Studied --------- None Alien Tech Used ----------------- None Achievements -------------- None Challenges ------------ None Game ------ Seed LauncherTractorGriptreads Manual? 0 Play Time 00:18:54 Cumulative 80.7 hours Start 2025.11.12 @ 15:57:13 End 2025.11.12 @ 16:14:14 Sessions 1 Manual Loads 0 Difficulty Explorer Special Mode None Game No. 75 Rogue 0 Adventurer 0 Explorer 75 Win Type - Total 0 Types 0/0/0/0/0/0/0/0/0/0 Lore% 52 Gallery% 55 Achievement% 42 Wizard Run 0 Options --------- Layout 1 ASCII 0 Keyboard 0 Movement Mouse Keybinds 0 Fullscreen 1 Font 24/Smallcaps Map View 50x35 Zoom Use 0% Tactical HUD 1 Map Filters NONE Filters NONE Steam 1 RUN: 1162d9bc-de77-45e0-87ec-1d6aa86ae15e